{"text_format":"1","workbook":"xlsx","n_sheets":8,"sheets":["Αρχή","Support","ws_Store","ws_Food","ws_Med","ws_House","ws_Other","ws_Index"],"not_rendered":{"charts":0,"images":4,"macros":1,"external_links":0,"defined_names":0,"comments":0,"pivot_tables":0},"unopened":[],"bounds":{"document_bytes":16777216,"sheet_cells":100000,"rows_first":2000,"rows_last":500,"rows_between":2000,"halvings":0,"cell_chars":16384,"cell_head_chars":4096},"cells_cut":0,"cells_raw":0,"read":"whole","date_system":"1900"}

{"sheet":"Αρχή","index":0,"n_rows":17,"n_cols":5,"rows_kept":17,"cut":false,"hidden":false,"merged":[[10,12,11,14],[10,16,11,18],[7,1,7,7],[8,1,8,7],[10,1,10,7],[11,1,11,7],[9,1,9,7],[10,8,11,10],[13,1,13,7],[14,1,14,7],[15,1,15,3],[15,4,15,7],[16,1,16,3],[16,4,16,7]]}
[]
[]
[]
[]
[]
[]
[]
[null,"Πληκτρολογήστε τον τίτλο του φορέα σας:"]
[]
[]
[null,"Επιλέξτε τον αριθμό των δομών που λειτουργούν:"]
[null,1]
[]
[null,"Κατάσταση Δομών"]
[null,"Για κάθε μία δομή του παρακάτω πίνακα, επιλέξτε από τη λίστα της στήλης 'Είδος', τι αφορά."]
[null,"Δομή",null,null,"Είδος"]
[null,"Δομή 1",null,null,"Δομές Ψυχικής Υγείας"]

{"sheet":"Support","index":1,"n_rows":6,"n_cols":3,"rows_kept":6,"cut":false,"hidden":true,"merged":[]}
["14:17"]
[]
[]
["Είδη δομών",null,"Φύλο"]
[null,null,"Άνδρας"]
["Δομές Ψυχικής Υγείας",null,"Γυναίκα"]

{"sheet":"ws_Store","index":2,"n_rows":19,"n_cols":9,"rows_kept":19,"cut":false,"hidden":true,"merged":[]}
["α/α\n(1)","ΑΜΚΑ\n(2)","ΚΩΔΙΚΟΣ ΣΤΟ ΣΥΣΤΗΜΑ ΤΟΥ ΔΙΚΑΙΟΥΧΟΥ\n(3)","ΦΥΛΟ\n(4)","ΕΤΟΣ ΠΡΩΤΗΣ ΛΗΨΗΣ ΥΠΗΡΕΣΙΑΣ\n(5)","ΑΡΙΘΜ. ΠΡΟΣΤΑΤΕΥΟΜ. ΜΕΛΩΝ\n(6) = (7) + (8)","ΑΡΙΘΜ. ΑΝΔΡΩΝ ΠΡΟΣΤΑΤΕΥΟΜ. ΜΕΛΩΝ\n(7)","ΑΡΙΘΜ. ΓΥΝΑΙΚΩΝ ΠΡΟΣΤΑΤΕΥΟΜ. ΜΕΛΩΝ\n(8)","Ο ΑΜΚΑ ΕΠΑΝΑΛΑΜΒΑΝΕΤΑΙ ΣΤΟ ΤΡΕΧΟΝ ΦΥΛΛΟ ΤΗΣ ΔΟΜΗΣ;\n(9)"]
[1,null,null,null,null,{"$f":"ws_Store!$G2+ws_Store!$H2","v":0},null,null,{"$f":"IF(COUNTIF(ws_Store!$B$2:$B$19,B2)<2,\"ΟΧΙ\",\"ΝΑΙ\")","v":"ΟΧΙ"}]
[{"$f":"A2+1","v":2},null,null,null,null,{"$f":"ws_Store!$G3+ws_Store!$H3","v":0},null,null,{"$f":"IF(COUNTIF(ws_Store!$B$2:$B$19,B3)<2,\"ΟΧΙ\",\"ΝΑΙ\")","v":"ΟΧΙ"}]
[3,null,null,null,null,{"$f":"ws_Store!$G4+ws_Store!$H4","v":0},null,null,{"$f":"IF(COUNTIF(ws_Store!$B$2:$B$19,B4)<2,\"ΟΧΙ\",\"ΝΑΙ\")","v":"ΟΧΙ"}]
[4,null,null,null,null,{"$f":"ws_Store!$G5+ws_Store!$H5","v":0},null,null,{"$f":"IF(COUNTIF(ws_Store!$B$2:$B$19,B5)<2,\"ΟΧΙ\",\"ΝΑΙ\")","v":"ΟΧΙ"}]
[5,null,null,null,null,{"$f":"ws_Store!$G6+ws_Store!$H6","v":0},null,null,{"$f":"IF(COUNTIF(ws_Store!$B$2:$B$19,B6)<2,\"ΟΧΙ\",\"ΝΑΙ\")","v":"ΟΧΙ"}]
[6,null,null,null,null,{"$f":"ws_Store!$G7+ws_Store!$H7","v":0},null,null,{"$f":"IF(COUNTIF(ws_Store!$B$2:$B$19,B7)<2,\"ΟΧΙ\",\"ΝΑΙ\")","v":"ΟΧΙ"}]
[7,null,null,null,null,{"$f":"ws_Store!$G8+ws_Store!$H8","v":0},null,null,{"$f":"IF(COUNTIF(ws_Store!$B$2:$B$19,B8)<2,\"ΟΧΙ\",\"ΝΑΙ\")","v":"ΟΧΙ"}]
[8,null,null,null,null,{"$f":"ws_Store!$G9+ws_Store!$H9","v":0},null,null,{"$f":"IF(COUNTIF(ws_Store!$B$2:$B$19,B9)<2,\"ΟΧΙ\",\"ΝΑΙ\")","v":"ΟΧΙ"}]
[9,null,null,null,null,{"$f":"ws_Store!$G10+ws_Store!$H10","v":0},null,null,{"$f":"IF(COUNTIF(ws_Store!$B$2:$B$19,B10)<2,\"ΟΧΙ\",\"ΝΑΙ\")","v":"ΟΧΙ"}]
[10,null,null,null,null,{"$f":"ws_Store!$G11+ws_Store!$H11","v":0},null,null,{"$f":"IF(COUNTIF(ws_Store!$B$2:$B$19,B11)<2,\"ΟΧΙ\",\"ΝΑΙ\")","v":"ΟΧΙ"}]
[11,null,null,null,null,{"$f":"ws_Store!$G12+ws_Store!$H12","v":0},null,null,{"$f":"IF(COUNTIF(ws_Store!$B$2:$B$19,B12)<2,\"ΟΧΙ\",\"ΝΑΙ\")","v":"ΟΧΙ"}]
[12,null,null,null,null,{"$f":"ws_Store!$G13+ws_Store!$H13","v":0},null,null,{"$f":"IF(COUNTIF(ws_Store!$B$2:$B$19,B13)<2,\"ΟΧΙ\",\"ΝΑΙ\")","v":"ΟΧΙ"}]
[13,null,null,null,null,{"$f":"ws_Store!$G14+ws_Store!$H14","v":0},null,null,{"$f":"IF(COUNTIF(ws_Store!$B$2:$B$19,B14)<2,\"ΟΧΙ\",\"ΝΑΙ\")","v":"ΟΧΙ"}]
[14,null,null,null,null,{"$f":"ws_Store!$G15+ws_Store!$H15","v":0},null,null,{"$f":"IF(COUNTIF(ws_Store!$B$2:$B$19,B15)<2,\"ΟΧΙ\",\"ΝΑΙ\")","v":"ΟΧΙ"}]
[15,null,null,null,null,{"$f":"ws_Store!$G16+ws_Store!$H16","v":0},null,null,{"$f":"IF(COUNTIF(ws_Store!$B$2:$B$19,B16)<2,\"ΟΧΙ\",\"ΝΑΙ\")","v":"ΟΧΙ"}]
[16,null,null,null,null,{"$f":"ws_Store!$G17+ws_Store!$H17","v":0},null,null,{"$f":"IF(COUNTIF(ws_Store!$B$2:$B$19,B17)<2,\"ΟΧΙ\",\"ΝΑΙ\")","v":"ΟΧΙ"}]
[17,null,null,null,null,{"$f":"ws_Store!$G18+ws_Store!$H18","v":0},null,null,{"$f":"IF(COUNTIF(ws_Store!$B$2:$B$19,B18)<2,\"ΟΧΙ\",\"ΝΑΙ\")","v":"ΟΧΙ"}]
[18,null,null,null,null,{"$f":"ws_Store!$G19+ws_Store!$H19","v":0},null,null,{"$f":"IF(COUNTIF(ws_Store!$B$2:$B$19,B19)<2,\"ΟΧΙ\",\"ΝΑΙ\")","v":"ΟΧΙ"}]

{"sheet":"ws_Food","index":3,"n_rows":19,"n_cols":9,"rows_kept":19,"cut":false,"hidden":true,"merged":[]}
["α/α\n(1)","ΑΜΚΑ\n(2)","ΚΩΔΙΚΟΣ ΣΤΟ ΣΥΣΤΗΜΑ ΤΟΥ ΔΙΚΑΙΟΥΧΟΥ\n(3)","ΦΥΛΟ\n(4)","ΕΤΟΣ ΠΡΩΤΗΣ ΛΗΨΗΣ ΥΠΗΡΕΣΙΑΣ\n(5)","ΑΡΙΘΜ. ΠΡΟΣΤΑΤΕΥΟΜ. ΜΕΛΩΝ\n(6) = (7) + (8)","ΑΡΙΘΜ. ΑΝΔΡΩΝ ΠΡΟΣΤΑΤΕΥΟΜ. ΜΕΛΩΝ\n(7)","ΑΡΙΘΜ. ΓΥΝΑΙΚΩΝ ΠΡΟΣΤΑΤΕΥΟΜ. ΜΕΛΩΝ\n(8)","Ο ΑΜΚΑ ΕΠΑΝΑΛΑΜΒΑΝΕΤΑΙ ΣΤΟ ΤΡΕΧΟΝ ΦΥΛΛΟ ΤΗΣ ΔΟΜΗΣ;\n(9)"]
[1,null,null,null,null,{"$f":"ws_Food!$G2+ws_Food!$H2","v":0},null,null,{"$f":"IF(COUNTIFS(ws_Food!$B$2:$B$19,B2)<2,\"ΟΧΙ\",\"ΝΑΙ\")","v":"ΟΧΙ"}]
[{"$f":"A2+1","v":2},null,null,null,null,{"$f":"ws_Food!$G3+ws_Food!$H3","v":0},null,null,{"$f":"IF(COUNTIFS(ws_Food!$B$2:$B$19,B3)<2,\"ΟΧΙ\",\"ΝΑΙ\")","v":"ΟΧΙ"}]
[3,null,null,null,null,{"$f":"ws_Food!$G4+ws_Food!$H4","v":0},null,null,{"$f":"IF(COUNTIFS(ws_Food!$B$2:$B$19,B4)<2,\"ΟΧΙ\",\"ΝΑΙ\")","v":"ΟΧΙ"}]
[4,null,null,null,null,{"$f":"ws_Food!$G5+ws_Food!$H5","v":0},null,null,{"$f":"IF(COUNTIFS(ws_Food!$B$2:$B$19,B5)<2,\"ΟΧΙ\",\"ΝΑΙ\")","v":"ΟΧΙ"}]
[5,null,null,null,null,{"$f":"ws_Food!$G6+ws_Food!$H6","v":0},null,null,{"$f":"IF(COUNTIFS(ws_Food!$B$2:$B$19,B6)<2,\"ΟΧΙ\",\"ΝΑΙ\")","v":"ΟΧΙ"}]
[6,null,null,null,null,{"$f":"ws_Food!$G7+ws_Food!$H7","v":0},null,null,{"$f":"IF(COUNTIFS(ws_Food!$B$2:$B$19,B7)<2,\"ΟΧΙ\",\"ΝΑΙ\")","v":"ΟΧΙ"}]
[7,null,null,null,null,{"$f":"ws_Food!$G8+ws_Food!$H8","v":0},null,null,{"$f":"IF(COUNTIFS(ws_Food!$B$2:$B$19,B8)<2,\"ΟΧΙ\",\"ΝΑΙ\")","v":"ΟΧΙ"}]
[8,null,null,null,null,{"$f":"ws_Food!$G9+ws_Food!$H9","v":0},null,null,{"$f":"IF(COUNTIFS(ws_Food!$B$2:$B$19,B9)<2,\"ΟΧΙ\",\"ΝΑΙ\")","v":"ΟΧΙ"}]
[9,null,null,null,null,{"$f":"ws_Food!$G10+ws_Food!$H10","v":0},null,null,{"$f":"IF(COUNTIFS(ws_Food!$B$2:$B$19,B10)<2,\"ΟΧΙ\",\"ΝΑΙ\")","v":"ΟΧΙ"}]
[10,null,null,null,null,{"$f":"ws_Food!$G11+ws_Food!$H11","v":0},null,null,{"$f":"IF(COUNTIFS(ws_Food!$B$2:$B$19,B11)<2,\"ΟΧΙ\",\"ΝΑΙ\")","v":"ΟΧΙ"}]
[11,null,null,null,null,{"$f":"ws_Food!$G12+ws_Food!$H12","v":0},null,null,{"$f":"IF(COUNTIFS(ws_Food!$B$2:$B$19,B12)<2,\"ΟΧΙ\",\"ΝΑΙ\")","v":"ΟΧΙ"}]
[12,null,null,null,null,{"$f":"ws_Food!$G13+ws_Food!$H13","v":0},null,null,{"$f":"IF(COUNTIFS(ws_Food!$B$2:$B$19,B13)<2,\"ΟΧΙ\",\"ΝΑΙ\")","v":"ΟΧΙ"}]
[13,null,null,null,null,{"$f":"ws_Food!$G14+ws_Food!$H14","v":0},null,null,{"$f":"IF(COUNTIFS(ws_Food!$B$2:$B$19,B14)<2,\"ΟΧΙ\",\"ΝΑΙ\")","v":"ΟΧΙ"}]
[14,null,null,null,null,{"$f":"ws_Food!$G15+ws_Food!$H15","v":0},null,null,{"$f":"IF(COUNTIFS(ws_Food!$B$2:$B$19,B15)<2,\"ΟΧΙ\",\"ΝΑΙ\")","v":"ΟΧΙ"}]
[15,null,null,null,null,{"$f":"ws_Food!$G16+ws_Food!$H16","v":0},null,null,{"$f":"IF(COUNTIFS(ws_Food!$B$2:$B$19,B16)<2,\"ΟΧΙ\",\"ΝΑΙ\")","v":"ΟΧΙ"}]
[16,null,null,null,null,{"$f":"ws_Food!$G17+ws_Food!$H17","v":0},null,null,{"$f":"IF(COUNTIFS(ws_Food!$B$2:$B$19,B17)<2,\"ΟΧΙ\",\"ΝΑΙ\")","v":"ΟΧΙ"}]
[17,null,null,null,null,{"$f":"ws_Food!$G18+ws_Food!$H18","v":0},null,null,{"$f":"IF(COUNTIFS(ws_Food!$B$2:$B$19,B18)<2,\"ΟΧΙ\",\"ΝΑΙ\")","v":"ΟΧΙ"}]
[18,null,null,null,null,{"$f":"ws_Food!$G19+ws_Food!$H19","v":0},null,null,{"$f":"IF(COUNTIFS(ws_Food!$B$2:$B$19,B19)<2,\"ΟΧΙ\",\"ΝΑΙ\")","v":"ΟΧΙ"}]

{"sheet":"ws_Med","index":4,"n_rows":21,"n_cols":6,"rows_kept":21,"cut":false,"hidden":true,"merged":[]}
["A/A","ΑΜΚΑ","ΚΩΔΙΚΟΣ ΣΤΟ ΣΥΣΤΗΜΑ ΤΟΥ ΔΙΚΑΙΟΥΧΟΥ","ΦΥΛΟ","ΕΤΟΣ ΠΡΩΤΗΣ ΛΗΨΗΣ ΥΠΗΡΕΣΙΑΣ","ΕΓΓΡΑΦΗ ΜΕ         ΚΟΙΝΟ  ΑΜΚΑ"]
[1,null,null,null,null,{"$f":"IF(COUNTIFS(ws_Med!$B$2:$B$21,B2)<2,\"ΟΧΙ\",\"ΝΑΙ\")","v":"ΟΧΙ"}]
[{"$f":"A2+1","v":2},null,null,null,null,{"$f":"IF(COUNTIFS(ws_Med!$B$2:$B$21,B3)<2,\"ΟΧΙ\",\"ΝΑΙ\")","v":"ΟΧΙ"}]
[3,null,null,null,null,{"$f":"IF(COUNTIFS(ws_Med!$B$2:$B$21,B4)<2,\"ΟΧΙ\",\"ΝΑΙ\")","v":"ΟΧΙ"}]
[4,null,null,null,null,{"$f":"IF(COUNTIFS(ws_Med!$B$2:$B$21,B5)<2,\"ΟΧΙ\",\"ΝΑΙ\")","v":"ΟΧΙ"}]
[5,null,null,null,null,{"$f":"IF(COUNTIFS(ws_Med!$B$2:$B$21,B6)<2,\"ΟΧΙ\",\"ΝΑΙ\")","v":"ΟΧΙ"}]
[6,null,null,null,null,{"$f":"IF(COUNTIFS(ws_Med!$B$2:$B$21,B7)<2,\"ΟΧΙ\",\"ΝΑΙ\")","v":"ΟΧΙ"}]
[7,null,null,null,null,{"$f":"IF(COUNTIFS(ws_Med!$B$2:$B$21,B8)<2,\"ΟΧΙ\",\"ΝΑΙ\")","v":"ΟΧΙ"}]
[8,null,null,null,null,{"$f":"IF(COUNTIFS(ws_Med!$B$2:$B$21,B9)<2,\"ΟΧΙ\",\"ΝΑΙ\")","v":"ΟΧΙ"}]
[9,null,null,null,null,{"$f":"IF(COUNTIFS(ws_Med!$B$2:$B$21,B10)<2,\"ΟΧΙ\",\"ΝΑΙ\")","v":"ΟΧΙ"}]
[10,null,null,null,null,{"$f":"IF(COUNTIFS(ws_Med!$B$2:$B$21,B11)<2,\"ΟΧΙ\",\"ΝΑΙ\")","v":"ΟΧΙ"}]
[11,null,null,null,null,{"$f":"IF(COUNTIFS(ws_Med!$B$2:$B$21,B12)<2,\"ΟΧΙ\",\"ΝΑΙ\")","v":"ΟΧΙ"}]
[12,null,null,null,null,{"$f":"IF(COUNTIFS(ws_Med!$B$2:$B$21,B13)<2,\"ΟΧΙ\",\"ΝΑΙ\")","v":"ΟΧΙ"}]
[13,null,null,null,null,{"$f":"IF(COUNTIFS(ws_Med!$B$2:$B$21,B14)<2,\"ΟΧΙ\",\"ΝΑΙ\")","v":"ΟΧΙ"}]
[14,null,null,null,null,{"$f":"IF(COUNTIFS(ws_Med!$B$2:$B$21,B15)<2,\"ΟΧΙ\",\"ΝΑΙ\")","v":"ΟΧΙ"}]
[15,null,null,null,null,{"$f":"IF(COUNTIFS(ws_Med!$B$2:$B$21,B16)<2,\"ΟΧΙ\",\"ΝΑΙ\")","v":"ΟΧΙ"}]
[16,null,null,null,null,{"$f":"IF(COUNTIFS(ws_Med!$B$2:$B$21,B17)<2,\"ΟΧΙ\",\"ΝΑΙ\")","v":"ΟΧΙ"}]
[17,null,null,null,null,{"$f":"IF(COUNTIFS(ws_Med!$B$2:$B$21,B18)<2,\"ΟΧΙ\",\"ΝΑΙ\")","v":"ΟΧΙ"}]
[18,null,null,null,null,{"$f":"IF(COUNTIFS(ws_Med!$B$2:$B$21,B19)<2,\"ΟΧΙ\",\"ΝΑΙ\")","v":"ΟΧΙ"}]
[19,null,null,null,null,{"$f":"IF(COUNTIFS(ws_Med!$B$2:$B$21,B20)<2,\"ΟΧΙ\",\"ΝΑΙ\")","v":"ΟΧΙ"}]
[20,null,null,null,null,{"$f":"IF(COUNTIFS(ws_Med!$B$2:$B$21,B21)<2,\"ΟΧΙ\",\"ΝΑΙ\")","v":"ΟΧΙ"}]

{"sheet":"ws_House","index":5,"n_rows":19,"n_cols":6,"rows_kept":19,"cut":false,"hidden":true,"merged":[]}
["α/α\n(1)","ΑΜΚΑ\n(2)","ΚΩΔΙΚΟΣ ΣΤΟ ΣΥΣΤΗΜΑ ΤΟΥ ΔΙΚΑΙΟΥΧΟΥ\n(3)","ΦΥΛΟ\n(4)","ΕΤΟΣ ΠΡΩΤΗΣ ΛΗΨΗΣ ΥΠΗΡΕΣΙΑΣ\n(5)","Ο ΑΜΚΑ ΕΠΑΝΑΛΑΜΒΑΝΕΤΑΙ ΣΤΟ ΤΡΕΧΟΝ ΦΥΛΛΟ ΤΗΣ ΔΟΜΗΣ;\n(6)"]
[1,null,null,null,null,{"$f":"IF(COUNTIFS(ws_House!$B$2:$B$19,B2)<2,\"ΟΧΙ\",\"ΝΑΙ\")","v":"ΟΧΙ"}]
[{"$f":"A2+1","v":2},null,null,null,null,{"$f":"IF(COUNTIFS(ws_House!$B$2:$B$19,B3)<2,\"ΟΧΙ\",\"ΝΑΙ\")","v":"ΟΧΙ"}]
[3,null,null,null,null,{"$f":"IF(COUNTIFS(ws_House!$B$2:$B$19,B4)<2,\"ΟΧΙ\",\"ΝΑΙ\")","v":"ΟΧΙ"}]
[4,null,null,null,null,{"$f":"IF(COUNTIFS(ws_House!$B$2:$B$19,B5)<2,\"ΟΧΙ\",\"ΝΑΙ\")","v":"ΟΧΙ"}]
[5,null,null,null,null,{"$f":"IF(COUNTIFS(ws_House!$B$2:$B$19,B6)<2,\"ΟΧΙ\",\"ΝΑΙ\")","v":"ΟΧΙ"}]
[6,null,null,null,null,{"$f":"IF(COUNTIFS(ws_House!$B$2:$B$19,B7)<2,\"ΟΧΙ\",\"ΝΑΙ\")","v":"ΟΧΙ"}]
[7,null,null,null,null,{"$f":"IF(COUNTIFS(ws_House!$B$2:$B$19,B8)<2,\"ΟΧΙ\",\"ΝΑΙ\")","v":"ΟΧΙ"}]
[8,null,null,null,null,{"$f":"IF(COUNTIFS(ws_House!$B$2:$B$19,B9)<2,\"ΟΧΙ\",\"ΝΑΙ\")","v":"ΟΧΙ"}]
[9,null,null,null,null,{"$f":"IF(COUNTIFS(ws_House!$B$2:$B$19,B10)<2,\"ΟΧΙ\",\"ΝΑΙ\")","v":"ΟΧΙ"}]
[10,null,null,null,null,{"$f":"IF(COUNTIFS(ws_House!$B$2:$B$19,B11)<2,\"ΟΧΙ\",\"ΝΑΙ\")","v":"ΟΧΙ"}]
[11,null,null,null,null,{"$f":"IF(COUNTIFS(ws_House!$B$2:$B$19,B12)<2,\"ΟΧΙ\",\"ΝΑΙ\")","v":"ΟΧΙ"}]
[12,null,null,null,null,{"$f":"IF(COUNTIFS(ws_House!$B$2:$B$19,B13)<2,\"ΟΧΙ\",\"ΝΑΙ\")","v":"ΟΧΙ"}]
[13,null,null,null,null,{"$f":"IF(COUNTIFS(ws_House!$B$2:$B$19,B14)<2,\"ΟΧΙ\",\"ΝΑΙ\")","v":"ΟΧΙ"}]
[14,null,null,null,null,{"$f":"IF(COUNTIFS(ws_House!$B$2:$B$19,B15)<2,\"ΟΧΙ\",\"ΝΑΙ\")","v":"ΟΧΙ"}]
[15,null,null,null,null,{"$f":"IF(COUNTIFS(ws_House!$B$2:$B$19,B16)<2,\"ΟΧΙ\",\"ΝΑΙ\")","v":"ΟΧΙ"}]
[16,null,null,null,null,{"$f":"IF(COUNTIFS(ws_House!$B$2:$B$19,B17)<2,\"ΟΧΙ\",\"ΝΑΙ\")","v":"ΟΧΙ"}]
[17,null,null,null,null,{"$f":"IF(COUNTIFS(ws_House!$B$2:$B$19,B18)<2,\"ΟΧΙ\",\"ΝΑΙ\")","v":"ΟΧΙ"}]
[18,null,null,null,null,{"$f":"IF(COUNTIFS(ws_House!$B$2:$B$19,B19)<2,\"ΟΧΙ\",\"ΝΑΙ\")","v":"ΟΧΙ"}]

{"sheet":"ws_Other","index":6,"n_rows":19,"n_cols":6,"rows_kept":19,"cut":false,"hidden":true,"merged":[]}
["α/α\n(1)","ΑΜΚΑ\n(2)","ΚΩΔΙΚΟΣ ΣΤΟ ΣΥΣΤΗΜΑ ΤΟΥ ΔΙΚΑΙΟΥΧΟΥ\n(3)","ΦΥΛΟ\n(4)","ΕΤΟΣ ΠΡΩΤΗΣ ΛΗΨΗΣ ΥΠΗΡΕΣΙΑΣ\n(5)","Ο ΑΜΚΑ ΕΠΑΝΑΛΑΜΒΑΝΕΤΑΙ ΣΤΟ ΤΡΕΧΟΝ ΦΥΛΛΟ ΤΗΣ ΔΟΜΗΣ;\n(6)"]
[1,null,null,null,null,{"$f":"IF(COUNTIFS(ws_Other!$B$2:$B$19,B2)<2,\"ΟΧΙ\",\"ΝΑΙ\")","v":"ΟΧΙ"}]
[{"$f":"A2+1","v":2},null,null,null,null,{"$f":"IF(COUNTIFS(ws_Other!$B$2:$B$19,B3)<2,\"ΟΧΙ\",\"ΝΑΙ\")","v":"ΟΧΙ"}]
[3,null,null,null,null,{"$f":"IF(COUNTIFS(ws_Other!$B$2:$B$19,B4)<2,\"ΟΧΙ\",\"ΝΑΙ\")","v":"ΟΧΙ"}]
[4,null,null,null,null,{"$f":"IF(COUNTIFS(ws_Other!$B$2:$B$19,B5)<2,\"ΟΧΙ\",\"ΝΑΙ\")","v":"ΟΧΙ"}]
[5,null,null,null,null,{"$f":"IF(COUNTIFS(ws_Other!$B$2:$B$19,B6)<2,\"ΟΧΙ\",\"ΝΑΙ\")","v":"ΟΧΙ"}]
[6,null,null,null,null,{"$f":"IF(COUNTIFS(ws_Other!$B$2:$B$19,B7)<2,\"ΟΧΙ\",\"ΝΑΙ\")","v":"ΟΧΙ"}]
[7,null,null,null,null,{"$f":"IF(COUNTIFS(ws_Other!$B$2:$B$19,B8)<2,\"ΟΧΙ\",\"ΝΑΙ\")","v":"ΟΧΙ"}]
[8,null,null,null,null,{"$f":"IF(COUNTIFS(ws_Other!$B$2:$B$19,B9)<2,\"ΟΧΙ\",\"ΝΑΙ\")","v":"ΟΧΙ"}]
[9,null,null,null,null,{"$f":"IF(COUNTIFS(ws_Other!$B$2:$B$19,B10)<2,\"ΟΧΙ\",\"ΝΑΙ\")","v":"ΟΧΙ"}]
[10,null,null,null,null,{"$f":"IF(COUNTIFS(ws_Other!$B$2:$B$19,B11)<2,\"ΟΧΙ\",\"ΝΑΙ\")","v":"ΟΧΙ"}]
[11,null,null,null,null,{"$f":"IF(COUNTIFS(ws_Other!$B$2:$B$19,B12)<2,\"ΟΧΙ\",\"ΝΑΙ\")","v":"ΟΧΙ"}]
[12,null,null,null,null,{"$f":"IF(COUNTIFS(ws_Other!$B$2:$B$19,B13)<2,\"ΟΧΙ\",\"ΝΑΙ\")","v":"ΟΧΙ"}]
[13,null,null,null,null,{"$f":"IF(COUNTIFS(ws_Other!$B$2:$B$19,B14)<2,\"ΟΧΙ\",\"ΝΑΙ\")","v":"ΟΧΙ"}]
[14,null,null,null,null,{"$f":"IF(COUNTIFS(ws_Other!$B$2:$B$19,B15)<2,\"ΟΧΙ\",\"ΝΑΙ\")","v":"ΟΧΙ"}]
[15,null,null,null,null,{"$f":"IF(COUNTIFS(ws_Other!$B$2:$B$19,B16)<2,\"ΟΧΙ\",\"ΝΑΙ\")","v":"ΟΧΙ"}]
[16,null,null,null,null,{"$f":"IF(COUNTIFS(ws_Other!$B$2:$B$19,B17)<2,\"ΟΧΙ\",\"ΝΑΙ\")","v":"ΟΧΙ"}]
[17,null,null,null,null,{"$f":"IF(COUNTIFS(ws_Other!$B$2:$B$19,B18)<2,\"ΟΧΙ\",\"ΝΑΙ\")","v":"ΟΧΙ"}]
[18,null,null,null,null,{"$f":"IF(COUNTIFS(ws_Other!$B$2:$B$19,B19)<2,\"ΟΧΙ\",\"ΝΑΙ\")","v":"ΟΧΙ"}]

{"sheet":"ws_Index","index":7,"n_rows":7,"n_cols":5,"rows_kept":7,"cut":false,"hidden":true,"merged":[[1,1,1,4],[1,6,3,8]]}
[]
[null,"Υπολογισμός δείκτη για τη δράση\n@@@@@"]
[null,"Έτος","Άνδρες","Γυναίκες","Σύνολο"]
[null,2021]
[null,2022]
[null,2023]
[null,"Σύνολο",{"$f":"SUM(C4:C6)","v":0},{"$f":"SUM(D4:D6)","v":0},{"$f":"SUM(E4:E6)","v":0}]